{"text_format":"1","workbook":"xlsx","n_sheets":2,"sheets":["الربح والخسارة","المعاملات"],"not_rendered":{"charts":0,"images":3,"macros":1,"external_links":0,"defined_names":11,"comments":0,"pivot_tables":0},"unopened":[],"bounds":{"document_bytes":16777216,"sheet_cells":100000,"rows_first":2000,"rows_last":500,"rows_between":2000,"halvings":0,"cell_chars":16384,"cell_head_chars":4096},"cells_cut":0,"cells_raw":0,"read":"whole","date_system":"1900"}

{"sheet":"الربح والخسارة","index":0,"n_rows":27,"n_cols":9,"rows_kept":27,"cut":false,"hidden":false,"merged":[[0,0,0,9],[4,1,4,8]]}
["بيان الأرباح والخسائر"]
[]
[null,null,null,"من:","2019-01-03","إلى:","04/20/2019"]
[]
[null,{"$f":"\"الأرباح والخسائر - من تاريخ:\"&TEXT($E$3,\"yyyy/mm/dd\")&\" إلى تاريخ:\"&TEXT($G$3,\"yyyy/mm/dd\")","v":"الأرباح والخسائر - من تاريخ:2019/01/03 إلى تاريخ:04/20/2019"}]
[null,null,"الإيرادات"]
[null,null,null,"زبون5",null,null,null,70]
[null,null,null,"زبون4",null,null,null,400]
[null,null,null,"زبون3",null,null,null,800]
[null,null,null,"زبون2",null,null,null,2375]
[null,null,null,"زبون1",null,null,null,850]
[null,null,"إجمالي الإيرادات",null,null,null,null,4495]
[]
[null,null,"التكاليف"]
[null,null,null,"محطة وقود1",null,null,null,100]
[null,null,null,"محطة وقود",null,null,null,350]
[null,null,null,"فني1",null,null,null,300]
[null,null,null,"فني",null,null,null,600]
[null,null,"إجمالي التكاليف",null,null,null,null,1350]
[null,"الربح بعد التكلفة",null,null,null,null,null,null,3145]
[]
[null,null,"النفقات"]
[null,null,null,"مورد3",null,null,null,200]
[null,null,null,"مورد2",null,null,null,400]
[null,null,null,"مورد1",null,null,null,700]
[null,null,"إجمالي النفقات",null,null,null,null,1300]
[null,"إجمالي الربح الصافي",null,null,null,null,null,null,1845]

{"sheet":"المعاملات","index":1,"n_rows":124,"n_cols":43,"rows_kept":124,"cut":false,"hidden":false,"merged":[[0,0,36,0],[0,35,0,39],[0,26,0,31],[0,15,0,16],[0,11,0,13],[0,1,0,5]]}
[null,"الإيرادات والنفقات",null,null,null,null,null,null,null,null,null,"الحسابات والأنواع",null,null,null,"ملخص الإجماليات",null,null,null,null,null,null,null,null,null,null,"معايير التصفية المتقدمة",null,null,null,null,null,null,null,null,"نتائج التصفية المتقدمة"]
[null,"تاريخ المعاملة","الحساب","الوصف","المبلغ","نوع الحساب",null,null,null,null,null,"اسم الحساب","النوع","الناتج الحالي",null,"الإيرادات",{"$f":"SUMIF($M$3:M100,$P$2,$N$3:N100)","v":4495},null,null,null,null,null,null,null,null,null,"تاريخ المعاملة","تاريخ المعاملة","الحساب","الوصف","المبلغ","نوع الحساب",null,null,null,"تاريخ المعاملة","الحساب","الوصف","المبلغ","نوع الحساب","العداد","الحساب","نوع الحساب"]
[null,"2019-03-26","زبون1","صنف1",600,"الإيرادات",null,null,null,null,null,{"$f":"AP3","v":"مورد3"},{"$f":"AQ3","v":"النفقات"},{"$f":"IFERROR(SUMIF(Results_Account,L3,Results_Amount),\"\")","v":200},null,"التكاليف",{"$f":"SUMIF($M$3:M100,$P$3,$N$3:N100)","v":1350},null,null,null,null,null,null,null,null,null,">=03/01/2019","<=04/20/2019",null,null,null,null,null,null,null,"2019-03-26","زبون1","صنف1",600,"الإيرادات",1,{"$f":"IFERROR(LOOKUP(2,1/((COUNTIF($AP$2:AP2,$AK$3:AK105)=0)*($AO$3:AO105=$AO$3)),$AK$3:AK105),\"\")","v":"مورد3"},{"$f":"IFERROR(VLOOKUP(AP3,$AK$3:AN105,4,0),\"\")","v":"النفقات"}]
[null,"2019-03-27","زبون1","صنف2",250,"الإيرادات",null,null,null,null,null,"مورد2","النفقات",400,null,"إجمالي الربح",{"$f":"Q2-Q3","v":3145},null,null,null,null,null,null,null,null,null,null,null,null,null,null,null,null,null,null,"2019-03-27","زبون1","صنف2",250,"الإيرادات",{"$f":"COUNTIF($AK$3:AK4,AK4)","v":2},{"$f":"IFERROR(LOOKUP(2,1/((COUNTIF($AP$2:AP3,$AK$3:AK106)=0)*($AO$3:AO106=$AO$3)),$AK$3:AK106),\"\")","v":"مورد2"},{"$f":"IFERROR(VLOOKUP(AP4,$AK$3:AN106,4,0),\"\")","v":"النفقات"}]
[null,"2019-03-28","زبون2","صنف2",1125,"الإيرادات",null,null,null,null,null,"مورد1","النفقات",700,null,"النفقات",{"$f":"SUMIF($M$3:M100,$P$5,$N$3:N100)","v":1300},null,null,null,null,null,null,null,null,null,null,null,null,null,null,null,null,null,null,"2019-03-28","زبون2","صنف2",1125,"الإيرادات",{"$f":"COUNTIF($AK$3:AK5,AK5)","v":1},{"$f":"IFERROR(LOOKUP(2,1/((COUNTIF($AP$2:AP4,$AK$3:AK107)=0)*($AO$3:AO107=$AO$3)),$AK$3:AK107),\"\")","v":"مورد1"},{"$f":"IFERROR(VLOOKUP(AP5,$AK$3:AN107,4,0),\"\")","v":"النفقات"}]
[null,"2019-03-29","زبون2","صنف2",1250,"الإيرادات",null,null,null,null,null,"محطة وقود1","التكاليف",100,null,"صافي الربح",{"$f":"Q4-Q5","v":1845},null,null,null,null,null,null,null,null,null,null,null,null,null,null,null,null,null,null,"2019-03-29","زبون2","صنف2",1250,"الإيرادات",{"$f":"COUNTIF($AK$3:AK6,AK6)","v":2},{"$f":"IFERROR(LOOKUP(2,1/((COUNTIF($AP$2:AP5,$AK$3:AK108)=0)*($AO$3:AO108=$AO$3)),$AK$3:AK108),\"\")","v":"محطة وقود1"},{"$f":"IFERROR(VLOOKUP(AP6,$AK$3:AN108,4,0),\"\")","v":"التكاليف"}]
[null,"2019-03-30","زبون3","صنف1",100,"الإيرادات",null,null,null,null,null,"زبون5","الإيرادات",70,null,null,null,null,null,null,null,null,null,null,null,null,null,null,null,null,null,null,null,null,null,"2019-03-30","زبون3","صنف1",100,"الإيرادات",{"$f":"COUNTIF($AK$3:AK7,AK7)","v":1},{"$f":"IFERROR(LOOKUP(2,1/((COUNTIF($AP$2:AP6,$AK$3:AK109)=0)*($AO$3:AO109=$AO$3)),$AK$3:AK109),\"\")","v":"زبون5"},{"$f":"IFERROR(VLOOKUP(AP7,$AK$3:AN109,4,0),\"\")","v":"الإيرادات"}]
[null,"2019-03-31","زبون3","صنف1",700,"الإيرادات",null,null,null,null,null,"محطة وقود","التكاليف",350,null,null,null,null,null,null,null,null,null,null,null,null,null,null,null,null,null,null,null,null,null,"2019-03-31","زبون3","صنف1",700,"الإيرادات",{"$f":"COUNTIF($AK$3:AK8,AK8)","v":2},{"$f":"IFERROR(LOOKUP(2,1/((COUNTIF($AP$2:AP7,$AK$3:AK110)=0)*($AO$3:AO110=$AO$3)),$AK$3:AK110),\"\")","v":"محطة وقود"},{"$f":"IFERROR(VLOOKUP(AP8,$AK$3:AN110,4,0),\"\")","v":"التكاليف"}]
[null,"2019-04-01","زبون4","صنف2",100,"الإيرادات",null,null,null,null,null,"فني1","التكاليف",300,null,null,null,null,null,null,null,null,null,null,null,null,null,null,null,null,null,null,null,null,null,"2019-04-01","زبون4","صنف2",100,"الإيرادات",{"$f":"COUNTIF($AK$3:AK9,AK9)","v":1},{"$f":"IFERROR(LOOKUP(2,1/((COUNTIF($AP$2:AP8,$AK$3:AK111)=0)*($AO$3:AO111=$AO$3)),$AK$3:AK111),\"\")","v":"فني1"},{"$f":"IFERROR(VLOOKUP(AP9,$AK$3:AN111,4,0),\"\")","v":"التكاليف"}]
[null,"2019-04-02","زبون4","صنف2",300,"الإيرادات",null,null,null,null,null,"فني","التكاليف",600,null,null,null,null,null,null,null,null,null,null,null,null,null,null,null,null,null,null,null,null,null,"2019-04-02","زبون4","صنف2",300,"الإيرادات",{"$f":"COUNTIF($AK$3:AK10,AK10)","v":2},{"$f":"IFERROR(LOOKUP(2,1/((COUNTIF($AP$2:AP9,$AK$3:AK112)=0)*($AO$3:AO112=$AO$3)),$AK$3:AK112),\"\")","v":"فني"},{"$f":"IFERROR(VLOOKUP(AP10,$AK$3:AN112,4,0),\"\")","v":"التكاليف"}]
[null,"2019-04-03","فني","إصلاح",300,"التكاليف",null,null,null,null,null,"زبون4","الإيرادات",400,null,null,null,null,null,null,null,null,null,null,null,null,null,null,null,null,null,null,null,null,null,"2019-04-03","فني","إصلاح",300,"التكاليف",{"$f":"COUNTIF($AK$3:AK11,AK11)","v":1},{"$f":"IFERROR(LOOKUP(2,1/((COUNTIF($AP$2:AP10,$AK$3:AK113)=0)*($AO$3:AO113=$AO$3)),$AK$3:AK113),\"\")","v":"زبون4"},{"$f":"IFERROR(VLOOKUP(AP11,$AK$3:AN113,4,0),\"\")","v":"الإيرادات"}]
[null,"2019-04-04","فني","إصلاح",300,"التكاليف",null,null,null,null,null,"زبون3","الإيرادات",800,null,null,null,null,null,null,null,null,null,null,null,null,null,null,null,null,null,null,null,null,null,"2019-04-04","فني","إصلاح",300,"التكاليف",{"$f":"COUNTIF($AK$3:AK12,AK12)","v":2},{"$f":"IFERROR(LOOKUP(2,1/((COUNTIF($AP$2:AP11,$AK$3:AK114)=0)*($AO$3:AO114=$AO$3)),$AK$3:AK114),\"\")","v":"زبون3"},{"$f":"IFERROR(VLOOKUP(AP12,$AK$3:AN114,4,0),\"\")","v":"الإيرادات"}]
[null,"2019-04-05","فني1","إصلاح",300,"التكاليف",null,null,null,null,null,"زبون2","الإيرادات",2375,null,null,null,null,null,null,null,null,null,null,null,null,null,null,null,null,null,null,null,null,null,"2019-04-05","فني1","إصلاح",300,"التكاليف",{"$f":"COUNTIF($AK$3:AK13,AK13)","v":1},{"$f":"IFERROR(LOOKUP(2,1/((COUNTIF($AP$2:AP12,$AK$3:AK115)=0)*($AO$3:AO115=$AO$3)),$AK$3:AK115),\"\")","v":"زبون2"},{"$f":"IFERROR(VLOOKUP(AP13,$AK$3:AN115,4,0),\"\")","v":"الإيرادات"}]
[null,"2019-04-03","محطة وقود","وقود",300,"التكاليف",null,null,null,null,null,"زبون1","الإيرادات",850,null,null,null,null,null,null,null,null,null,null,null,null,null,null,null,null,null,null,null,null,null,"2019-04-03","محطة وقود","وقود",300,"التكاليف",{"$f":"COUNTIF($AK$3:AK14,AK14)","v":1},{"$f":"IFERROR(LOOKUP(2,1/((COUNTIF($AP$2:AP13,$AK$3:AK116)=0)*($AO$3:AO116=$AO$3)),$AK$3:AK116),\"\")","v":"زبون1"},{"$f":"IFERROR(VLOOKUP(AP14,$AK$3:AN116,4,0),\"\")","v":"الإيرادات"}]
[null,"2019-04-03","زبون5","صنف2",70,"الإيرادات",null,null,null,null,null,"","",0,null,null,null,null,null,null,null,null,null,null,null,null,null,null,null,null,null,null,null,null,null,"2019-04-03","زبون5","صنف2",70,"الإيرادات",{"$f":"COUNTIF($AK$3:AK15,AK15)","v":1},{"$f":"IFERROR(LOOKUP(2,1/((COUNTIF($AP$2:AP14,$AK$3:AK117)=0)*($AO$3:AO117=$AO$3)),$AK$3:AK117),\"\")","v":""},{"$f":"IFERROR(VLOOKUP(AP15,$AK$3:AN117,4,0),\"\")","v":""}]
[null,"2019-04-04","محطة وقود","وقود",50,"التكاليف",null,null,null,null,null,"","",0,null,null,null,null,null,null,null,null,null,null,null,null,null,null,null,null,null,null,null,null,null,"2019-04-04","محطة وقود","وقود",50,"التكاليف",{"$f":"COUNTIF($AK$3:AK16,AK16)","v":2},{"$f":"IFERROR(LOOKUP(2,1/((COUNTIF($AP$2:AP15,$AK$3:AK118)=0)*($AO$3:AO118=$AO$3)),$AK$3:AK118),\"\")","v":""},{"$f":"IFERROR(VLOOKUP(AP16,$AK$3:AN118,4,0),\"\")","v":""}]
[null,"2019-04-05","محطة وقود1","وقود",100,"التكاليف",null,null,null,null,null,"","",0,null,null,null,null,null,null,null,null,null,null,null,null,null,null,null,null,null,null,null,null,null,"2019-04-05","محطة وقود1","وقود",100,"التكاليف",{"$f":"COUNTIF($AK$3:AK17,AK17)","v":1},{"$f":"IFERROR(LOOKUP(2,1/((COUNTIF($AP$2:AP16,$AK$3:AK119)=0)*($AO$3:AO119=$AO$3)),$AK$3:AK119),\"\")","v":""},{"$f":"IFERROR(VLOOKUP(AP17,$AK$3:AN119,4,0),\"\")","v":""}]
[null,"2019-04-05","مورد1","صنف4",200,"النفقات",null,null,null,null,null,"","",0,null,null,null,null,null,null,null,null,null,null,null,null,null,null,null,null,null,null,null,null,null,"2019-04-05","مورد1","صنف4",200,"النفقات",{"$f":"COUNTIF($AK$3:AK18,AK18)","v":1},{"$f":"IFERROR(LOOKUP(2,1/((COUNTIF($AP$2:AP17,$AK$3:AK120)=0)*($AO$3:AO120=$AO$3)),$AK$3:AK120),\"\")","v":""},{"$f":"IFERROR(VLOOKUP(AP18,$AK$3:AN120,4,0),\"\")","v":""}]
[null,"2019-04-06","مورد1","صنف1",200,"النفقات",null,null,null,null,null,"","",0,null,null,null,null,null,null,null,null,null,null,null,null,null,null,null,null,null,null,null,null,null,"2019-04-06","مورد1","صنف1",200,"النفقات",{"$f":"COUNTIF($AK$3:AK19,AK19)","v":2},{"$f":"IFERROR(LOOKUP(2,1/((COUNTIF($AP$2:AP18,$AK$3:AK121)=0)*($AO$3:AO121=$AO$3)),$AK$3:AK121),\"\")","v":""},{"$f":"IFERROR(VLOOKUP(AP19,$AK$3:AN121,4,0),\"\")","v":""}]
[null,"2019-04-07","مورد1","صنف3",300,"النفقات",null,null,null,null,null,"","",0,null,null,null,null,null,null,null,null,null,null,null,null,null,null,null,null,null,null,null,null,null,"2019-04-07","مورد1","صنف3",300,"النفقات",{"$f":"COUNTIF($AK$3:AK20,AK20)","v":3},{"$f":"IFERROR(LOOKUP(2,1/((COUNTIF($AP$2:AP19,$AK$3:AK122)=0)*($AO$3:AO122=$AO$3)),$AK$3:AK122),\"\")","v":""},{"$f":"IFERROR(VLOOKUP(AP20,$AK$3:AN122,4,0),\"\")","v":""}]
[null,"2019-04-08","مورد2","صنف1",200,"النفقات",null,null,null,null,null,"","",0,null,null,null,null,null,null,null,null,null,null,null,null,null,null,null,null,null,null,null,null,null,"2019-04-08","مورد2","صنف1",200,"النفقات",{"$f":"COUNTIF($AK$3:AK21,AK21)","v":1},{"$f":"IFERROR(LOOKUP(2,1/((COUNTIF($AP$2:AP20,$AK$3:AK123)=0)*($AO$3:AO123=$AO$3)),$AK$3:AK123),\"\")","v":""},{"$f":"IFERROR(VLOOKUP(AP21,$AK$3:AN123,4,0),\"\")","v":""}]
[null,"2019-04-09","مورد2","صنف1",200,"النفقات",null,null,null,null,null,"","",0,null,null,null,null,null,null,null,null,null,null,null,null,null,null,null,null,null,null,null,null,null,"2019-04-09","مورد2","صنف1",200,"النفقات",{"$f":"COUNTIF($AK$3:AK22,AK22)","v":2},{"$f":"IFERROR(LOOKUP(2,1/((COUNTIF($AP$2:AP21,$AK$3:AK124)=0)*($AO$3:AO124=$AO$3)),$AK$3:AK124),\"\")","v":""},{"$f":"IFERROR(VLOOKUP(AP22,$AK$3:AN124,4,0),\"\")","v":""}]
[null,"2019-04-10","مورد3","صنف4",200,"النفقات",null,null,null,null,null,"","",0,null,null,null,null,null,null,null,null,null,null,null,null,null,null,null,null,null,null,null,null,null,"2019-04-10","مورد3","صنف4",200,"النفقات",{"$f":"COUNTIF($AK$3:AK23,AK23)","v":1},{"$f":"IFERROR(LOOKUP(2,1/((COUNTIF($AP$2:AP22,$AK$3:AK125)=0)*($AO$3:AO125=$AO$3)),$AK$3:AK125),\"\")","v":""},{"$f":"IFERROR(VLOOKUP(AP23,$AK$3:AN125,4,0),\"\")","v":""}]
[null,null,null,null,null,null,null,null,null,null,null,"","",0,null,null,null,null,null,null,null,null,null,null,null,null,null,null,null,null,null,null,null,null,null,null,null,null,null,null,{"$f":"COUNTIF($AK$3:AK24,AK24)","v":0},{"$f":"IFERROR(LOOKUP(2,1/((COUNTIF($AP$2:AP23,$AK$3:AK126)=0)*($AO$3:AO126=$AO$3)),$AK$3:AK126),\"\")","v":""},{"$f":"IFERROR(VLOOKUP(AP24,$AK$3:AN126,4,0),\"\")","v":""}]
[null,null,null,null,null,null,null,null,null,null,null,"","",0,null,null,null,null,null,null,null,null,null,null,null,null,null,null,null,null,null,null,null,null,null,null,null,null,null,null,{"$f":"COUNTIF($AK$3:AK25,AK25)","v":0},{"$f":"IFERROR(LOOKUP(2,1/((COUNTIF($AP$2:AP24,$AK$3:AK127)=0)*($AO$3:AO127=$AO$3)),$AK$3:AK127),\"\")","v":""},{"$f":"IFERROR(VLOOKUP(AP25,$AK$3:AN127,4,0),\"\")","v":""}]
[null,null,null,null,null,null,null,null,null,null,null,"","",0,null,null,null,null,null,null,null,null,null,null,null,null,null,null,null,null,null,null,null,null,null,null,null,null,null,null,{"$f":"COUNTIF($AK$3:AK26,AK26)","v":0},{"$f":"IFERROR(LOOKUP(2,1/((COUNTIF($AP$2:AP25,$AK$3:AK128)=0)*($AO$3:AO128=$AO$3)),$AK$3:AK128),\"\")","v":""},{"$f":"IFERROR(VLOOKUP(AP26,$AK$3:AN128,4,0),\"\")","v":""}]
[null,null,null,null,null,null,null,null,null,null,null,"","",0,null,null,null,null,null,null,null,null,null,null,null,null,null,null,null,null,null,null,null,null,null,null,null,null,null,null,{"$f":"COUNTIF($AK$3:AK27,AK27)","v":0},{"$f":"IFERROR(LOOKUP(2,1/((COUNTIF($AP$2:AP26,$AK$3:AK129)=0)*($AO$3:AO129=$AO$3)),$AK$3:AK129),\"\")","v":""},{"$f":"IFERROR(VLOOKUP(AP27,$AK$3:AN129,4,0),\"\")","v":""}]
[null,null,null,null,null,null,null,null,null,null,null,"","",0,null,null,null,null,null,null,null,null,null,null,null,null,null,null,null,null,null,null,null,null,null,null,null,null,null,null,{"$f":"COUNTIF($AK$3:AK28,AK28)","v":0},{"$f":"IFERROR(LOOKUP(2,1/((COUNTIF($AP$2:AP27,$AK$3:AK130)=0)*($AO$3:AO130=$AO$3)),$AK$3:AK130),\"\")","v":""},{"$f":"IFERROR(VLOOKUP(AP28,$AK$3:AN130,4,0),\"\")","v":""}]
[null,null,null,null,null,null,null,null,null,null,null,"","",0,null,null,null,null,null,null,null,null,null,null,null,null,null,null,null,null,null,null,null,null,null,null,null,null,null,null,{"$f":"COUNTIF($AK$3:AK29,AK29)","v":0},{"$f":"IFERROR(LOOKUP(2,1/((COUNTIF($AP$2:AP28,$AK$3:AK131)=0)*($AO$3:AO131=$AO$3)),$AK$3:AK131),\"\")","v":""},{"$f":"IFERROR(VLOOKUP(AP29,$AK$3:AN131,4,0),\"\")","v":""}]
[null,null,null,null,null,null,null,null,null,null,null,"","",0,null,null,null,null,null,null,null,null,null,null,null,null,null,null,null,null,null,null,null,null,null,null,null,null,null,null,{"$f":"COUNTIF($AK$3:AK30,AK30)","v":0},{"$f":"IFERROR(LOOKUP(2,1/((COUNTIF($AP$2:AP29,$AK$3:AK132)=0)*($AO$3:AO132=$AO$3)),$AK$3:AK132),\"\")","v":""},{"$f":"IFERROR(VLOOKUP(AP30,$AK$3:AN132,4,0),\"\")","v":""}]
[null,null,null,null,null,null,null,null,null,null,null,"","",0,null,null,null,null,null,null,null,null,null,null,null,null,null,null,null,null,null,null,null,null,null,null,null,null,null,null,{"$f":"COUNTIF($AK$3:AK31,AK31)","v":0},{"$f":"IFERROR(LOOKUP(2,1/((COUNTIF($AP$2:AP30,$AK$3:AK133)=0)*($AO$3:AO133=$AO$3)),$AK$3:AK133),\"\")","v":""},{"$f":"IFERROR(VLOOKUP(AP31,$AK$3:AN133,4,0),\"\")","v":""}]
[null,null,null,null,null,null,null,null,null,null,null,"","",0,null,null,null,null,null,null,null,null,null,null,null,null,null,null,null,null,null,null,null,null,null,null,null,null,null,null,{"$f":"COUNTIF($AK$3:AK32,AK32)","v":0},{"$f":"IFERROR(LOOKUP(2,1/((COUNTIF($AP$2:AP31,$AK$3:AK134)=0)*($AO$3:AO134=$AO$3)),$AK$3:AK134),\"\")","v":""},{"$f":"IFERROR(VLOOKUP(AP32,$AK$3:AN134,4,0),\"\")","v":""}]
[null,null,null,null,null,null,null,null,null,null,null,"","",0,null,null,null,null,null,null,null,null,null,null,null,null,null,null,null,null,null,null,null,null,null,null,null,null,null,null,{"$f":"COUNTIF($AK$3:AK33,AK33)","v":0},{"$f":"IFERROR(LOOKUP(2,1/((COUNTIF($AP$2:AP32,$AK$3:AK135)=0)*($AO$3:AO135=$AO$3)),$AK$3:AK135),\"\")","v":""},{"$f":"IFERROR(VLOOKUP(AP33,$AK$3:AN135,4,0),\"\")","v":""}]
[null,null,null,null,null,null,null,null,null,null,null,"","",0,null,null,null,null,null,null,null,null,null,null,null,null,null,null,null,null,null,null,null,null,null,null,null,null,null,null,{"$f":"COUNTIF($AK$3:AK34,AK34)","v":0},{"$f":"IFERROR(LOOKUP(2,1/((COUNTIF($AP$2:AP33,$AK$3:AK136)=0)*($AO$3:AO136=$AO$3)),$AK$3:AK136),\"\")","v":""},{"$f":"IFERROR(VLOOKUP(AP34,$AK$3:AN136,4,0),\"\")","v":""}]
[null,null,null,null,null,null,null,null,null,null,null,"","",0,null,null,null,null,null,null,null,null,null,null,null,null,null,null,null,null,null,null,null,null,null,null,null,null,null,null,{"$f":"COUNTIF($AK$3:AK35,AK35)","v":0},{"$f":"IFERROR(LOOKUP(2,1/((COUNTIF($AP$2:AP34,$AK$3:AK137)=0)*($AO$3:AO137=$AO$3)),$AK$3:AK137),\"\")","v":""},{"$f":"IFERROR(VLOOKUP(AP35,$AK$3:AN137,4,0),\"\")","v":""}]
[null,null,null,null,null,null,null,null,null,null,null,"","",0,null,null,null,null,null,null,null,null,null,null,null,null,null,null,null,null,null,null,null,null,null,null,null,null,null,null,{"$f":"COUNTIF($AK$3:AK36,AK36)","v":0},{"$f":"IFERROR(LOOKUP(2,1/((COUNTIF($AP$2:AP35,$AK$3:AK138)=0)*($AO$3:AO138=$AO$3)),$AK$3:AK138),\"\")","v":""},{"$f":"IFERROR(VLOOKUP(AP36,$AK$3:AN138,4,0),\"\")","v":""}]
[null,null,null,null,null,null,null,null,null,null,null,"","",0,null,null,null,null,null,null,null,null,null,null,null,null,null,null,null,null,null,null,null,null,null,null,null,null,null,null,{"$f":"COUNTIF($AK$3:AK37,AK37)","v":0},{"$f":"IFERROR(LOOKUP(2,1/((COUNTIF($AP$2:AP36,$AK$3:AK139)=0)*($AO$3:AO139=$AO$3)),$AK$3:AK139),\"\")","v":""},{"$f":"IFERROR(VLOOKUP(AP37,$AK$3:AN139,4,0),\"\")","v":""}]
[null,null,null,null,null,null,null,null,null,null,null,null,null,null,null,null,null,null,null,null,null,null,null,null,null,null,null,null,null,null,null,null,null,null,null,null,null,null,null,null,{"$f":"COUNTIF($AK$3:AK38,AK38)","v":0},{"$f":"IFERROR(LOOKUP(2,1/((COUNTIF($AP$2:AP37,$AK$3:AK140)=0)*($AO$3:AO140=$AO$3)),$AK$3:AK140),\"\")","v":""},{"$f":"IFERROR(VLOOKUP(AP38,$AK$3:AN140,4,0),\"\")","v":""}]
[null,null,null,null,null,null,null,null,null,null,null,null,null,null,null,null,null,null,null,null,null,null,null,null,null,null,null,null,null,null,null,null,null,null,null,null,null,null,null,null,{"$f":"COUNTIF($AK$3:AK39,AK39)","v":0},{"$f":"IFERROR(LOOKUP(2,1/((COUNTIF($AP$2:AP38,$AK$3:AK141)=0)*($AO$3:AO141=$AO$3)),$AK$3:AK141),\"\")","v":""},{"$f":"IFERROR(VLOOKUP(AP39,$AK$3:AN141,4,0),\"\")","v":""}]
[null,null,null,null,null,null,null,null,null,null,null,null,null,null,null,null,null,null,null,null,null,null,null,null,null,null,null,null,null,null,null,null,null,null,null,null,null,null,null,null,{"$f":"COUNTIF($AK$3:AK40,AK40)","v":0},{"$f":"IFERROR(LOOKUP(2,1/((COUNTIF($AP$2:AP39,$AK$3:AK142)=0)*($AO$3:AO142=$AO$3)),$AK$3:AK142),\"\")","v":""},{"$f":"IFERROR(VLOOKUP(AP40,$AK$3:AN142,4,0),\"\")","v":""}]
[null,null,null,null,null,null,null,null,null,null,null,null,null,null,null,null,null,null,null,null,null,null,null,null,null,null,null,null,null,null,null,null,null,null,null,null,null,null,null,null,{"$f":"COUNTIF($AK$3:AK41,AK41)","v":0},{"$f":"IFERROR(LOOKUP(2,1/((COUNTIF($AP$2:AP40,$AK$3:AK143)=0)*($AO$3:AO143=$AO$3)),$AK$3:AK143),\"\")","v":""},{"$f":"IFERROR(VLOOKUP(AP41,$AK$3:AN143,4,0),\"\")","v":""}]
[null,null,null,null,null,null,null,null,null,null,null,null,null,null,null,null,null,null,null,null,null,null,null,null,null,null,null,null,null,null,null,null,null,null,null,null,null,null,null,null,{"$f":"COUNTIF($AK$3:AK42,AK42)","v":0},{"$f":"IFERROR(LOOKUP(2,1/((COUNTIF($AP$2:AP41,$AK$3:AK144)=0)*($AO$3:AO144=$AO$3)),$AK$3:AK144),\"\")","v":""},{"$f":"IFERROR(VLOOKUP(AP42,$AK$3:AN144,4,0),\"\")","v":""}]
[null,null,null,null,null,null,null,null,null,null,null,null,null,null,null,null,null,null,null,null,null,null,null,null,null,null,null,null,null,null,null,null,null,null,null,null,null,null,null,null,{"$f":"COUNTIF($AK$3:AK43,AK43)","v":0},{"$f":"IFERROR(LOOKUP(2,1/((COUNTIF($AP$2:AP42,$AK$3:AK145)=0)*($AO$3:AO145=$AO$3)),$AK$3:AK145),\"\")","v":""},{"$f":"IFERROR(VLOOKUP(AP43,$AK$3:AN145,4,0),\"\")","v":""}]
[null,null,null,null,null,null,null,null,null,null,null,null,null,null,null,null,null,null,null,null,null,null,null,null,null,null,null,null,null,null,null,null,null,null,null,null,null,null,null,null,{"$f":"COUNTIF($AK$3:AK44,AK44)","v":0},{"$f":"IFERROR(LOOKUP(2,1/((COUNTIF($AP$2:AP43,$AK$3:AK146)=0)*($AO$3:AO146=$AO$3)),$AK$3:AK146),\"\")","v":""},{"$f":"IFERROR(VLOOKUP(AP44,$AK$3:AN146,4,0),\"\")","v":""}]
[null,null,null,null,null,null,null,null,null,null,null,null,null,null,null,null,null,null,null,null,null,null,null,null,null,null,null,null,null,null,null,null,null,null,null,null,null,null,null,null,{"$f":"COUNTIF($AK$3:AK45,AK45)","v":0},{"$f":"IFERROR(LOOKUP(2,1/((COUNTIF($AP$2:AP44,$AK$3:AK147)=0)*($AO$3:AO147=$AO$3)),$AK$3:AK147),\"\")","v":""},{"$f":"IFERROR(VLOOKUP(AP45,$AK$3:AN147,4,0),\"\")","v":""}]
[null,null,null,null,null,null,null,null,null,null,null,null,null,null,null,null,null,null,null,null,null,null,null,null,null,null,null,null,null,null,null,null,null,null,null,null,null,null,null,null,{"$f":"COUNTIF($AK$3:AK46,AK46)","v":0},{"$f":"IFERROR(LOOKUP(2,1/((COUNTIF($AP$2:AP45,$AK$3:AK148)=0)*($AO$3:AO148=$AO$3)),$AK$3:AK148),\"\")","v":""},{"$f":"IFERROR(VLOOKUP(AP46,$AK$3:AN148,4,0),\"\")","v":""}]
[null,null,null,null,null,null,null,null,null,null,null,null,null,null,null,null,null,null,null,null,null,null,null,null,null,null,null,null,null,null,null,null,null,null,null,null,null,null,null,null,{"$f":"COUNTIF($AK$3:AK47,AK47)","v":0},{"$f":"IFERROR(LOOKUP(2,1/((COUNTIF($AP$2:AP46,$AK$3:AK149)=0)*($AO$3:AO149=$AO$3)),$AK$3:AK149),\"\")","v":""},{"$f":"IFERROR(VLOOKUP(AP47,$AK$3:AN149,4,0),\"\")","v":""}]
[null,null,null,null,null,null,null,null,null,null,null,null,null,null,null,null,null,null,null,null,null,null,null,null,null,null,null,null,null,null,null,null,null,null,null,null,null,null,null,null,{"$f":"COUNTIF($AK$3:AK48,AK48)","v":0},{"$f":"IFERROR(LOOKUP(2,1/((COUNTIF($AP$2:AP47,$AK$3:AK150)=0)*($AO$3:AO150=$AO$3)),$AK$3:AK150),\"\")","v":""},{"$f":"IFERROR(VLOOKUP(AP48,$AK$3:AN150,4,0),\"\")","v":""}]
[null,null,null,null,null,null,null,null,null,null,null,null,null,null,null,null,null,null,null,null,null,null,null,null,null,null,null,null,null,null,null,null,null,null,null,null,null,null,null,null,{"$f":"COUNTIF($AK$3:AK49,AK49)","v":0},{"$f":"IFERROR(LOOKUP(2,1/((COUNTIF($AP$2:AP48,$AK$3:AK151)=0)*($AO$3:AO151=$AO$3)),$AK$3:AK151),\"\")","v":""},{"$f":"IFERROR(VLOOKUP(AP49,$AK$3:AN151,4,0),\"\")","v":""}]
[null,null,null,null,null,null,null,null,null,null,null,null,null,null,null,null,null,null,null,null,null,null,null,null,null,null,null,null,null,null,null,null,null,null,null,null,null,null,null,null,{"$f":"COUNTIF($AK$3:AK50,AK50)","v":0},{"$f":"IFERROR(LOOKUP(2,1/((COUNTIF($AP$2:AP49,$AK$3:AK152)=0)*($AO$3:AO152=$AO$3)),$AK$3:AK152),\"\")","v":""},{"$f":"IFERROR(VLOOKUP(AP50,$AK$3:AN152,4,0),\"\")","v":""}]
[null,null,null,null,null,null,null,null,null,null,null,null,null,null,null,null,null,null,null,null,null,null,null,null,null,null,null,null,null,null,null,null,null,null,null,null,null,null,null,null,{"$f":"COUNTIF($AK$3:AK51,AK51)","v":0},{"$f":"IFERROR(LOOKUP(2,1/((COUNTIF($AP$2:AP50,$AK$3:AK153)=0)*($AO$3:AO153=$AO$3)),$AK$3:AK153),\"\")","v":""},{"$f":"IFERROR(VLOOKUP(AP51,$AK$3:AN153,4,0),\"\")","v":""}]
[null,null,null,null,null,null,null,null,null,null,null,null,null,null,null,null,null,null,null,null,null,null,null,null,null,null,null,null,null,null,null,null,null,null,null,null,null,null,null,null,{"$f":"COUNTIF($AK$3:AK52,AK52)","v":0},{"$f":"IFERROR(LOOKUP(2,1/((COUNTIF($AP$2:AP51,$AK$3:AK154)=0)*($AO$3:AO154=$AO$3)),$AK$3:AK154),\"\")","v":""},{"$f":"IFERROR(VLOOKUP(AP52,$AK$3:AN154,4,0),\"\")","v":""}]
[null,null,null,null,null,null,null,null,null,null,null,null,null,null,null,null,null,null,null,null,null,null,null,null,null,null,null,null,null,null,null,null,null,null,null,null,null,null,null,null,{"$f":"COUNTIF($AK$3:AK53,AK53)","v":0},{"$f":"IFERROR(LOOKUP(2,1/((COUNTIF($AP$2:AP52,$AK$3:AK155)=0)*($AO$3:AO155=$AO$3)),$AK$3:AK155),\"\")","v":""},{"$f":"IFERROR(VLOOKUP(AP53,$AK$3:AN155,4,0),\"\")","v":""}]
[null,null,null,null,null,null,null,null,null,null,null,null,null,null,null,null,null,null,null,null,null,null,null,null,null,null,null,null,null,null,null,null,null,null,null,null,null,null,null,null,{"$f":"COUNTIF($AK$3:AK54,AK54)","v":0},{"$f":"IFERROR(LOOKUP(2,1/((COUNTIF($AP$2:AP53,$AK$3:AK156)=0)*($AO$3:AO156=$AO$3)),$AK$3:AK156),\"\")","v":""},{"$f":"IFERROR(VLOOKUP(AP54,$AK$3:AN156,4,0),\"\")","v":""}]
[null,null,null,null,null,null,null,null,null,null,null,null,null,null,null,null,null,null,null,null,null,null,null,null,null,null,null,null,null,null,null,null,null,null,null,null,null,null,null,null,{"$f":"COUNTIF($AK$3:AK55,AK55)","v":0},{"$f":"IFERROR(LOOKUP(2,1/((COUNTIF($AP$2:AP54,$AK$3:AK157)=0)*($AO$3:AO157=$AO$3)),$AK$3:AK157),\"\")","v":""},{"$f":"IFERROR(VLOOKUP(AP55,$AK$3:AN157,4,0),\"\")","v":""}]
[null,null,null,null,null,null,null,null,null,null,null,null,null,null,null,null,null,null,null,null,null,null,null,null,null,null,null,null,null,null,null,null,null,null,null,null,null,null,null,null,{"$f":"COUNTIF($AK$3:AK56,AK56)","v":0},{"$f":"IFERROR(LOOKUP(2,1/((COUNTIF($AP$2:AP55,$AK$3:AK158)=0)*($AO$3:AO158=$AO$3)),$AK$3:AK158),\"\")","v":""},{"$f":"IFERROR(VLOOKUP(AP56,$AK$3:AN158,4,0),\"\")","v":""}]
[null,null,null,null,null,null,null,null,null,null,null,null,null,null,null,null,null,null,null,null,null,null,null,null,null,null,null,null,null,null,null,null,null,null,null,null,null,null,null,null,{"$f":"COUNTIF($AK$3:AK57,AK57)","v":0},{"$f":"IFERROR(LOOKUP(2,1/((COUNTIF($AP$2:AP56,$AK$3:AK159)=0)*($AO$3:AO159=$AO$3)),$AK$3:AK159),\"\")","v":""},{"$f":"IFERROR(VLOOKUP(AP57,$AK$3:AN159,4,0),\"\")","v":""}]
[null,null,null,null,null,null,null,null,null,null,null,null,null,null,null,null,null,null,null,null,null,null,null,null,null,null,null,null,null,null,null,null,null,null,null,null,null,null,null,null,{"$f":"COUNTIF($AK$3:AK58,AK58)","v":0},{"$f":"IFERROR(LOOKUP(2,1/((COUNTIF($AP$2:AP57,$AK$3:AK160)=0)*($AO$3:AO160=$AO$3)),$AK$3:AK160),\"\")","v":""},{"$f":"IFERROR(VLOOKUP(AP58,$AK$3:AN160,4,0),\"\")","v":""}]
[null,null,null,null,null,null,null,null,null,null,null,null,null,null,null,null,null,null,null,null,null,null,null,null,null,null,null,null,null,null,null,null,null,null,null,null,null,null,null,null,{"$f":"COUNTIF($AK$3:AK59,AK59)","v":0},{"$f":"IFERROR(LOOKUP(2,1/((COUNTIF($AP$2:AP58,$AK$3:AK161)=0)*($AO$3:AO161=$AO$3)),$AK$3:AK161),\"\")","v":""},{"$f":"IFERROR(VLOOKUP(AP59,$AK$3:AN161,4,0),\"\")","v":""}]
[null,null,null,null,null,null,null,null,null,null,null,null,null,null,null,null,null,null,null,null,null,null,null,null,null,null,null,null,null,null,null,null,null,null,null,null,null,null,null,null,{"$f":"COUNTIF($AK$3:AK60,AK60)","v":0},{"$f":"IFERROR(LOOKUP(2,1/((COUNTIF($AP$2:AP59,$AK$3:AK162)=0)*($AO$3:AO162=$AO$3)),$AK$3:AK162),\"\")","v":""},{"$f":"IFERROR(VLOOKUP(AP60,$AK$3:AN162,4,0),\"\")","v":""}]
[null,null,null,null,null,null,null,null,null,null,null,null,null,null,null,null,null,null,null,null,null,null,null,null,null,null,null,null,null,null,null,null,null,null,null,null,null,null,null,null,{"$f":"COUNTIF($AK$3:AK61,AK61)","v":0},{"$f":"IFERROR(LOOKUP(2,1/((COUNTIF($AP$2:AP60,$AK$3:AK163)=0)*($AO$3:AO163=$AO$3)),$AK$3:AK163),\"\")","v":""},{"$f":"IFERROR(VLOOKUP(AP61,$AK$3:AN163,4,0),\"\")","v":""}]
[null,null,null,null,null,null,null,null,null,null,null,null,null,null,null,null,null,null,null,null,null,null,null,null,null,null,null,null,null,null,null,null,null,null,null,null,null,null,null,null,{"$f":"COUNTIF($AK$3:AK62,AK62)","v":0},{"$f":"IFERROR(LOOKUP(2,1/((COUNTIF($AP$2:AP61,$AK$3:AK164)=0)*($AO$3:AO164=$AO$3)),$AK$3:AK164),\"\")","v":""},{"$f":"IFERROR(VLOOKUP(AP62,$AK$3:AN164,4,0),\"\")","v":""}]
[null,null,null,null,null,null,null,null,null,null,null,null,null,null,null,null,null,null,null,null,null,null,null,null,null,null,null,null,null,null,null,null,null,null,null,null,null,null,null,null,{"$f":"COUNTIF($AK$3:AK63,AK63)","v":0},{"$f":"IFERROR(LOOKUP(2,1/((COUNTIF($AP$2:AP62,$AK$3:AK165)=0)*($AO$3:AO165=$AO$3)),$AK$3:AK165),\"\")","v":""},{"$f":"IFERROR(VLOOKUP(AP63,$AK$3:AN165,4,0),\"\")","v":""}]
[null,null,null,null,null,null,null,null,null,null,null,null,null,null,null,null,null,null,null,null,null,null,null,null,null,null,null,null,null,null,null,null,null,null,null,null,null,null,null,null,{"$f":"COUNTIF($AK$3:AK64,AK64)","v":0},{"$f":"IFERROR(LOOKUP(2,1/((COUNTIF($AP$2:AP63,$AK$3:AK166)=0)*($AO$3:AO166=$AO$3)),$AK$3:AK166),\"\")","v":""},{"$f":"IFERROR(VLOOKUP(AP64,$AK$3:AN166,4,0),\"\")","v":""}]
[null,null,null,null,null,null,null,null,null,null,null,null,null,null,null,null,null,null,null,null,null,null,null,null,null,null,null,null,null,null,null,null,null,null,null,null,null,null,null,null,{"$f":"COUNTIF($AK$3:AK65,AK65)","v":0},{"$f":"IFERROR(LOOKUP(2,1/((COUNTIF($AP$2:AP64,$AK$3:AK167)=0)*($AO$3:AO167=$AO$3)),$AK$3:AK167),\"\")","v":""},{"$f":"IFERROR(VLOOKUP(AP65,$AK$3:AN167,4,0),\"\")","v":""}]
[null,null,null,null,null,null,null,null,null,null,null,null,null,null,null,null,null,null,null,null,null,null,null,null,null,null,null,null,null,null,null,null,null,null,null,null,null,null,null,null,{"$f":"COUNTIF($AK$3:AK66,AK66)","v":0},{"$f":"IFERROR(LOOKUP(2,1/((COUNTIF($AP$2:AP65,$AK$3:AK168)=0)*($AO$3:AO168=$AO$3)),$AK$3:AK168),\"\")","v":""},{"$f":"IFERROR(VLOOKUP(AP66,$AK$3:AN168,4,0),\"\")","v":""}]
[null,null,null,null,null,null,null,null,null,null,null,null,null,null,null,null,null,null,null,null,null,null,null,null,null,null,null,null,null,null,null,null,null,null,null,null,null,null,null,null,{"$f":"COUNTIF($AK$3:AK67,AK67)","v":0},{"$f":"IFERROR(LOOKUP(2,1/((COUNTIF($AP$2:AP66,$AK$3:AK169)=0)*($AO$3:AO169=$AO$3)),$AK$3:AK169),\"\")","v":""},{"$f":"IFERROR(VLOOKUP(AP67,$AK$3:AN169,4,0),\"\")","v":""}]
[null,null,null,null,null,null,null,null,null,null,{"$f":"IF(L68=\"\",\"\",SUBTOTAL(3,$L$3:L68))","v":""},null,null,null,null,null,null,null,null,null,null,null,null,null,null,null,null,null,null,null,null,null,null,null,null,null,null,null,null,null,{"$f":"COUNTIF($AK$3:AK68,AK68)","v":0},{"$f":"IFERROR(LOOKUP(2,1/((COUNTIF($AP$2:AP67,$AK$3:AK170)=0)*($AO$3:AO170=$AO$3)),$AK$3:AK170),\"\")","v":""},{"$f":"IFERROR(VLOOKUP(AP68,$AK$3:AN170,4,0),\"\")","v":""}]
[null,null,null,null,null,null,null,null,null,null,{"$f":"IF(L69=\"\",\"\",SUBTOTAL(3,$L$3:L69))","v":""},null,null,null,null,null,null,null,null,null,null,null,null,null,null,null,null,null,null,null,null,null,null,null,null,null,null,null,null,null,{"$f":"COUNTIF($AK$3:AK69,AK69)","v":0},{"$f":"IFERROR(LOOKUP(2,1/((COUNTIF($AP$2:AP68,$AK$3:AK171)=0)*($AO$3:AO171=$AO$3)),$AK$3:AK171),\"\")","v":""},{"$f":"IFERROR(VLOOKUP(AP69,$AK$3:AN171,4,0),\"\")","v":""}]
[null,null,null,null,null,null,null,null,null,null,{"$f":"IF(L70=\"\",\"\",SUBTOTAL(3,$L$3:L70))","v":""},null,null,null,null,null,null,null,null,null,null,null,null,null,null,null,null,null,null,null,null,null,null,null,null,null,null,null,null,null,{"$f":"COUNTIF($AK$3:AK70,AK70)","v":0},{"$f":"IFERROR(LOOKUP(2,1/((COUNTIF($AP$2:AP69,$AK$3:AK172)=0)*($AO$3:AO172=$AO$3)),$AK$3:AK172),\"\")","v":""},{"$f":"IFERROR(VLOOKUP(AP70,$AK$3:AN172,4,0),\"\")","v":""}]
[null,null,null,null,null,null,null,null,null,null,{"$f":"IF(L71=\"\",\"\",SUBTOTAL(3,$L$3:L71))","v":""},null,null,null,null,null,null,null,null,null,null,null,null,null,null,null,null,null,null,null,null,null,null,null,null,null,null,null,null,null,{"$f":"COUNTIF($AK$3:AK71,AK71)","v":0},{"$f":"IFERROR(LOOKUP(2,1/((COUNTIF($AP$2:AP70,$AK$3:AK173)=0)*($AO$3:AO173=$AO$3)),$AK$3:AK173),\"\")","v":""},{"$f":"IFERROR(VLOOKUP(AP71,$AK$3:AN173,4,0),\"\")","v":""}]
[null,null,null,null,null,null,null,null,null,null,{"$f":"IF(L72=\"\",\"\",SUBTOTAL(3,$L$3:L72))","v":""},null,null,null,null,null,null,null,null,null,null,null,null,null,null,null,null,null,null,null,null,null,null,null,null,null,null,null,null,null,{"$f":"COUNTIF($AK$3:AK72,AK72)","v":0},{"$f":"IFERROR(LOOKUP(2,1/((COUNTIF($AP$2:AP71,$AK$3:AK174)=0)*($AO$3:AO174=$AO$3)),$AK$3:AK174),\"\")","v":""},{"$f":"IFERROR(VLOOKUP(AP72,$AK$3:AN174,4,0),\"\")","v":""}]
[null,null,null,null,null,null,null,null,null,null,{"$f":"IF(L73=\"\",\"\",SUBTOTAL(3,$L$3:L73))","v":""},null,null,null,null,null,null,null,null,null,null,null,null,null,null,null,null,null,null,null,null,null,null,null,null,null,null,null,null,null,{"$f":"COUNTIF($AK$3:AK73,AK73)","v":0},{"$f":"IFERROR(LOOKUP(2,1/((COUNTIF($AP$2:AP72,$AK$3:AK175)=0)*($AO$3:AO175=$AO$3)),$AK$3:AK175),\"\")","v":""},{"$f":"IFERROR(VLOOKUP(AP73,$AK$3:AN175,4,0),\"\")","v":""}]
[null,null,null,null,null,null,null,null,null,null,{"$f":"IF(L74=\"\",\"\",SUBTOTAL(3,$L$3:L74))","v":""},null,null,null,null,null,null,null,null,null,null,null,null,null,null,null,null,null,null,null,null,null,null,null,null,null,null,null,null,null,{"$f":"COUNTIF($AK$3:AK74,AK74)","v":0},{"$f":"IFERROR(LOOKUP(2,1/((COUNTIF($AP$2:AP73,$AK$3:AK176)=0)*($AO$3:AO176=$AO$3)),$AK$3:AK176),\"\")","v":""},{"$f":"IFERROR(VLOOKUP(AP74,$AK$3:AN176,4,0),\"\")","v":""}]
[null,null,null,null,null,null,null,null,null,null,{"$f":"IF(L75=\"\",\"\",SUBTOTAL(3,$L$3:L75))","v":""},null,null,null,null,null,null,null,null,null,null,null,null,null,null,null,null,null,null,null,null,null,null,null,null,null,null,null,null,null,{"$f":"COUNTIF($AK$3:AK75,AK75)","v":0},{"$f":"IFERROR(LOOKUP(2,1/((COUNTIF($AP$2:AP74,$AK$3:AK177)=0)*($AO$3:AO177=$AO$3)),$AK$3:AK177),\"\")","v":""},{"$f":"IFERROR(VLOOKUP(AP75,$AK$3:AN177,4,0),\"\")","v":""}]
[null,null,null,null,null,null,null,null,null,null,null,null,null,null,null,null,null,null,null,null,null,null,null,null,null,null,null,null,null,null,null,null,null,null,null,null,null,null,null,null,{"$f":"COUNTIF($AK$3:AK76,AK76)","v":0},{"$f":"IFERROR(LOOKUP(2,1/((COUNTIF($AP$2:AP75,$AK$3:AK178)=0)*($AO$3:AO178=$AO$3)),$AK$3:AK178),\"\")","v":""},{"$f":"IFERROR(VLOOKUP(AP76,$AK$3:AN178,4,0),\"\")","v":""}]
[null,null,null,null,null,null,null,null,null,null,null,null,null,null,null,null,null,null,null,null,null,null,null,null,null,null,null,null,null,null,null,null,null,null,null,null,null,null,null,null,{"$f":"COUNTIF($AK$3:AK77,AK77)","v":0},{"$f":"IFERROR(LOOKUP(2,1/((COUNTIF($AP$2:AP76,$AK$3:AK179)=0)*($AO$3:AO179=$AO$3)),$AK$3:AK179),\"\")","v":""},{"$f":"IFERROR(VLOOKUP(AP77,$AK$3:AN179,4,0),\"\")","v":""}]
[null,null,null,null,null,null,null,null,null,null,null,null,null,null,null,null,null,null,null,null,null,null,null,null,null,null,null,null,null,null,null,null,null,null,null,null,null,null,null,null,{"$f":"COUNTIF($AK$3:AK78,AK78)","v":0},{"$f":"IFERROR(LOOKUP(2,1/((COUNTIF($AP$2:AP77,$AK$3:AK180)=0)*($AO$3:AO180=$AO$3)),$AK$3:AK180),\"\")","v":""},{"$f":"IFERROR(VLOOKUP(AP78,$AK$3:AN180,4,0),\"\")","v":""}]
[null,null,null,null,null,null,null,null,null,null,null,null,null,null,null,null,null,null,null,null,null,null,null,null,null,null,null,null,null,null,null,null,null,null,null,null,null,null,null,null,{"$f":"COUNTIF($AK$3:AK79,AK79)","v":0},{"$f":"IFERROR(LOOKUP(2,1/((COUNTIF($AP$2:AP78,$AK$3:AK181)=0)*($AO$3:AO181=$AO$3)),$AK$3:AK181),\"\")","v":""},{"$f":"IFERROR(VLOOKUP(AP79,$AK$3:AN181,4,0),\"\")","v":""}]
[null,null,null,null,null,null,null,null,null,null,null,null,null,null,null,null,null,null,null,null,null,null,null,null,null,null,null,null,null,null,null,null,null,null,null,null,null,null,null,null,{"$f":"COUNTIF($AK$3:AK80,AK80)","v":0},{"$f":"IFERROR(LOOKUP(2,1/((COUNTIF($AP$2:AP79,$AK$3:AK182)=0)*($AO$3:AO182=$AO$3)),$AK$3:AK182),\"\")","v":""},{"$f":"IFERROR(VLOOKUP(AP80,$AK$3:AN182,4,0),\"\")","v":""}]
[null,null,null,null,null,null,null,null,null,null,null,null,null,null,null,null,null,null,null,null,null,null,null,null,null,null,null,null,null,null,null,null,null,null,null,null,null,null,null,null,{"$f":"COUNTIF($AK$3:AK81,AK81)","v":0},{"$f":"IFERROR(LOOKUP(2,1/((COUNTIF($AP$2:AP80,$AK$3:AK183)=0)*($AO$3:AO183=$AO$3)),$AK$3:AK183),\"\")","v":""},{"$f":"IFERROR(VLOOKUP(AP81,$AK$3:AN183,4,0),\"\")","v":""}]
[null,null,null,null,null,null,null,null,null,null,null,null,null,null,null,null,null,null,null,null,null,null,null,null,null,null,null,null,null,null,null,null,null,null,null,null,null,null,null,null,{"$f":"COUNTIF($AK$3:AK82,AK82)","v":0},{"$f":"IFERROR(LOOKUP(2,1/((COUNTIF($AP$2:AP81,$AK$3:AK184)=0)*($AO$3:AO184=$AO$3)),$AK$3:AK184),\"\")","v":""},{"$f":"IFERROR(VLOOKUP(AP82,$AK$3:AN184,4,0),\"\")","v":""}]
[null,null,null,null,null,null,null,null,null,null,null,null,null,null,null,null,null,null,null,null,null,null,null,null,null,null,null,null,null,null,null,null,null,null,null,null,null,null,null,null,{"$f":"COUNTIF($AK$3:AK83,AK83)","v":0},{"$f":"IFERROR(LOOKUP(2,1/((COUNTIF($AP$2:AP82,$AK$3:AK185)=0)*($AO$3:AO185=$AO$3)),$AK$3:AK185),\"\")","v":""},{"$f":"IFERROR(VLOOKUP(AP83,$AK$3:AN185,4,0),\"\")","v":""}]
[null,null,null,null,null,null,null,null,null,null,null,null,null,null,null,null,null,null,null,null,null,null,null,null,null,null,null,null,null,null,null,null,null,null,null,null,null,null,null,null,{"$f":"COUNTIF($AK$3:AK84,AK84)","v":0},{"$f":"IFERROR(LOOKUP(2,1/((COUNTIF($AP$2:AP83,$AK$3:AK186)=0)*($AO$3:AO186=$AO$3)),$AK$3:AK186),\"\")","v":""},{"$f":"IFERROR(VLOOKUP(AP84,$AK$3:AN186,4,0),\"\")","v":""}]
[null,null,null,null,null,null,null,null,null,null,null,null,null,null,null,null,null,null,null,null,null,null,null,null,null,null,null,null,null,null,null,null,null,null,null,null,null,null,null,null,{"$f":"COUNTIF($AK$3:AK85,AK85)","v":0},{"$f":"IFERROR(LOOKUP(2,1/((COUNTIF($AP$2:AP84,$AK$3:AK187)=0)*($AO$3:AO187=$AO$3)),$AK$3:AK187),\"\")","v":""},{"$f":"IFERROR(VLOOKUP(AP85,$AK$3:AN187,4,0),\"\")","v":""}]
[null,null,null,null,null,null,null,null,null,null,null,null,null,null,null,null,null,null,null,null,null,null,null,null,null,null,null,null,null,null,null,null,null,null,null,null,null,null,null,null,{"$f":"COUNTIF($AK$3:AK86,AK86)","v":0},{"$f":"IFERROR(LOOKUP(2,1/((COUNTIF($AP$2:AP85,$AK$3:AK188)=0)*($AO$3:AO188=$AO$3)),$AK$3:AK188),\"\")","v":""},{"$f":"IFERROR(VLOOKUP(AP86,$AK$3:AN188,4,0),\"\")","v":""}]
[null,null,null,null,null,null,null,null,null,null,null,null,null,null,null,null,null,null,null,null,null,null,null,null,null,null,null,null,null,null,null,null,null,null,null,null,null,null,null,null,{"$f":"COUNTIF($AK$3:AK87,AK87)","v":0},{"$f":"IFERROR(LOOKUP(2,1/((COUNTIF($AP$2:AP86,$AK$3:AK189)=0)*($AO$3:AO189=$AO$3)),$AK$3:AK189),\"\")","v":""},{"$f":"IFERROR(VLOOKUP(AP87,$AK$3:AN189,4,0),\"\")","v":""}]
[null,null,null,null,null,null,null,null,null,null,null,null,null,null,null,null,null,null,null,null,null,null,null,null,null,null,null,null,null,null,null,null,null,null,null,null,null,null,null,null,{"$f":"COUNTIF($AK$3:AK88,AK88)","v":0},{"$f":"IFERROR(LOOKUP(2,1/((COUNTIF($AP$2:AP87,$AK$3:AK190)=0)*($AO$3:AO190=$AO$3)),$AK$3:AK190),\"\")","v":""},{"$f":"IFERROR(VLOOKUP(AP88,$AK$3:AN190,4,0),\"\")","v":""}]
[null,null,null,null,null,null,null,null,null,null,null,null,null,null,null,null,null,null,null,null,null,null,null,null,null,null,null,null,null,null,null,null,null,null,null,null,null,null,null,null,{"$f":"COUNTIF($AK$3:AK89,AK89)","v":0},{"$f":"IFERROR(LOOKUP(2,1/((COUNTIF($AP$2:AP88,$AK$3:AK191)=0)*($AO$3:AO191=$AO$3)),$AK$3:AK191),\"\")","v":""},{"$f":"IFERROR(VLOOKUP(AP89,$AK$3:AN191,4,0),\"\")","v":""}]
[null,null,null,null,null,null,null,null,null,null,null,null,null,null,null,null,null,null,null,null,null,null,null,null,null,null,null,null,null,null,null,null,null,null,null,null,null,null,null,null,{"$f":"COUNTIF($AK$3:AK90,AK90)","v":0},{"$f":"IFERROR(LOOKUP(2,1/((COUNTIF($AP$2:AP89,$AK$3:AK192)=0)*($AO$3:AO192=$AO$3)),$AK$3:AK192),\"\")","v":""},{"$f":"IFERROR(VLOOKUP(AP90,$AK$3:AN192,4,0),\"\")","v":""}]
[null,null,null,null,null,null,null,null,null,null,null,null,null,null,null,null,null,null,null,null,null,null,null,null,null,null,null,null,null,null,null,null,null,null,null,null,null,null,null,null,{"$f":"COUNTIF($AK$3:AK91,AK91)","v":0},{"$f":"IFERROR(LOOKUP(2,1/((COUNTIF($AP$2:AP90,$AK$3:AK193)=0)*($AO$3:AO193=$AO$3)),$AK$3:AK193),\"\")","v":""},{"$f":"IFERROR(VLOOKUP(AP91,$AK$3:AN193,4,0),\"\")","v":""}]
[null,null,null,null,null,null,null,null,null,null,null,null,null,null,null,null,null,null,null,null,null,null,null,null,null,null,null,null,null,null,null,null,null,null,null,null,null,null,null,null,{"$f":"COUNTIF($AK$3:AK92,AK92)","v":0},{"$f":"IFERROR(LOOKUP(2,1/((COUNTIF($AP$2:AP91,$AK$3:AK194)=0)*($AO$3:AO194=$AO$3)),$AK$3:AK194),\"\")","v":""},{"$f":"IFERROR(VLOOKUP(AP92,$AK$3:AN194,4,0),\"\")","v":""}]
[null,null,null,null,null,null,null,null,null,null,null,null,null,null,null,null,null,null,null,null,null,null,null,null,null,null,null,null,null,null,null,null,null,null,null,null,null,null,null,null,{"$f":"COUNTIF($AK$3:AK93,AK93)","v":0},{"$f":"IFERROR(LOOKUP(2,1/((COUNTIF($AP$2:AP92,$AK$3:AK195)=0)*($AO$3:AO195=$AO$3)),$AK$3:AK195),\"\")","v":""},{"$f":"IFERROR(VLOOKUP(AP93,$AK$3:AN195,4,0),\"\")","v":""}]
[null,null,null,null,null,null,null,null,null,null,null,null,null,null,null,null,null,null,null,null,null,null,null,null,null,null,null,null,null,null,null,null,null,null,null,null,null,null,null,null,{"$f":"COUNTIF($AK$3:AK94,AK94)","v":0},{"$f":"IFERROR(LOOKUP(2,1/((COUNTIF($AP$2:AP93,$AK$3:AK196)=0)*($AO$3:AO196=$AO$3)),$AK$3:AK196),\"\")","v":""},{"$f":"IFERROR(VLOOKUP(AP94,$AK$3:AN196,4,0),\"\")","v":""}]
[null,null,null,null,null,null,null,null,null,null,null,null,null,null,null,null,null,null,null,null,null,null,null,null,null,null,null,null,null,null,null,null,null,null,null,null,null,null,null,null,{"$f":"COUNTIF($AK$3:AK95,AK95)","v":0},{"$f":"IFERROR(LOOKUP(2,1/((COUNTIF($AP$2:AP94,$AK$3:AK197)=0)*($AO$3:AO197=$AO$3)),$AK$3:AK197),\"\")","v":""},{"$f":"IFERROR(VLOOKUP(AP95,$AK$3:AN197,4,0),\"\")","v":""}]
[null,null,null,null,null,null,null,null,null,null,null,null,null,null,null,null,null,null,null,null,null,null,null,null,null,null,null,null,null,null,null,null,null,null,null,null,null,null,null,null,{"$f":"COUNTIF($AK$3:AK96,AK96)","v":0},{"$f":"IFERROR(LOOKUP(2,1/((COUNTIF($AP$2:AP95,$AK$3:AK198)=0)*($AO$3:AO198=$AO$3)),$AK$3:AK198),\"\")","v":""},{"$f":"IFERROR(VLOOKUP(AP96,$AK$3:AN198,4,0),\"\")","v":""}]
[null,null,null,null,null,null,null,null,null,null,null,null,null,null,null,null,null,null,null,null,null,null,null,null,null,null,null,null,null,null,null,null,null,null,null,null,null,null,null,null,{"$f":"COUNTIF($AK$3:AK97,AK97)","v":0},{"$f":"IFERROR(LOOKUP(2,1/((COUNTIF($AP$2:AP96,$AK$3:AK199)=0)*($AO$3:AO199=$AO$3)),$AK$3:AK199),\"\")","v":""},{"$f":"IFERROR(VLOOKUP(AP97,$AK$3:AN199,4,0),\"\")","v":""}]
[null,null,null,null,null,null,null,null,null,null,null,null,null,null,null,null,null,null,null,null,null,null,null,null,null,null,null,null,null,null,null,null,null,null,null,null,null,null,null,null,{"$f":"COUNTIF($AK$3:AK98,AK98)","v":0},{"$f":"IFERROR(LOOKUP(2,1/((COUNTIF($AP$2:AP97,$AK$3:AK200)=0)*($AO$3:AO200=$AO$3)),$AK$3:AK200),\"\")","v":""},{"$f":"IFERROR(VLOOKUP(AP98,$AK$3:AN200,4,0),\"\")","v":""}]
[null,null,null,null,null,null,null,null,null,null,null,null,null,null,null,null,null,null,null,null,null,null,null,null,null,null,null,null,null,null,null,null,null,null,null,null,null,null,null,null,{"$f":"COUNTIF($AK$3:AK99,AK99)","v":0},{"$f":"IFERROR(LOOKUP(2,1/((COUNTIF($AP$2:AP98,$AK$3:AK201)=0)*($AO$3:AO201=$AO$3)),$AK$3:AK201),\"\")","v":""},{"$f":"IFERROR(VLOOKUP(AP99,$AK$3:AN201,4,0),\"\")","v":""}]
[null,null,null,null,null,null,null,null,null,null,null,null,null,null,null,null,null,null,null,null,null,null,null,null,null,null,null,null,null,null,null,null,null,null,null,null,null,null,null,null,{"$f":"COUNTIF($AK$3:AK100,AK100)","v":0},{"$f":"IFERROR(LOOKUP(2,1/((COUNTIF($AP$2:AP99,$AK$3:AK202)=0)*($AO$3:AO202=$AO$3)),$AK$3:AK202),\"\")","v":""},{"$f":"IFERROR(VLOOKUP(AP100,$AK$3:AN202,4,0),\"\")","v":""}]
[null,null,null,null,null,null,null,null,null,null,null,null,null,null,null,null,null,null,null,null,null,null,null,null,null,null,null,null,null,null,null,null,null,null,null,null,null,null,null,null,{"$f":"COUNTIF($AK$3:AK101,AK101)","v":0},{"$f":"IFERROR(LOOKUP(2,1/((COUNTIF($AP$2:AP100,$AK$3:AK203)=0)*($AO$3:AO203=$AO$3)),$AK$3:AK203),\"\")","v":""},{"$f":"IFERROR(VLOOKUP(AP101,$AK$3:AN203,4,0),\"\")","v":""}]
[null,null,null,null,null,null,null,null,null,null,null,null,null,null,null,null,null,null,null,null,null,null,null,null,null,null,null,null,null,null,null,null,null,null,null,null,null,null,null,null,{"$f":"COUNTIF($AK$3:AK102,AK102)","v":0},{"$f":"IFERROR(LOOKUP(2,1/((COUNTIF($AP$2:AP101,$AK$3:AK204)=0)*($AO$3:AO204=$AO$3)),$AK$3:AK204),\"\")","v":""},{"$f":"IFERROR(VLOOKUP(AP102,$AK$3:AN204,4,0),\"\")","v":""}]
[null,null,null,null,null,null,null,null,null,null,null,null,null,null,null,null,null,null,null,null,null,null,null,null,null,null,null,null,null,null,null,null,null,null,null,null,null,null,null,null,{"$f":"COUNTIF($AK$3:AK103,AK103)","v":0},{"$f":"IFERROR(LOOKUP(2,1/((COUNTIF($AP$2:AP102,$AK$3:AK205)=0)*($AO$3:AO205=$AO$3)),$AK$3:AK205),\"\")","v":""},{"$f":"IFERROR(VLOOKUP(AP103,$AK$3:AN205,4,0),\"\")","v":""}]
[null,null,null,null,null,null,null,null,null,null,null,null,null,null,null,null,null,null,null,null,null,null,null,null,null,null,null,null,null,null,null,null,null,null,null,null,null,null,null,null,{"$f":"COUNTIF($AK$3:AK104,AK104)","v":0},{"$f":"IFERROR(LOOKUP(2,1/((COUNTIF($AP$2:AP103,$AK$3:AK206)=0)*($AO$3:AO206=$AO$3)),$AK$3:AK206),\"\")","v":""},{"$f":"IFERROR(VLOOKUP(AP104,$AK$3:AN206,4,0),\"\")","v":""}]
[null,null,null,null,null,null,null,null,null,null,null,null,null,null,null,null,null,null,null,null,null,null,null,null,null,null,null,null,null,null,null,null,null,null,null,null,null,null,null,null,{"$f":"COUNTIF($AK$3:AK105,AK105)","v":0},{"$f":"IFERROR(LOOKUP(2,1/((COUNTIF($AP$2:AP104,$AK$3:AK207)=0)*($AO$3:AO207=$AO$3)),$AK$3:AK207),\"\")","v":""},{"$f":"IFERROR(VLOOKUP(AP105,$AK$3:AN207,4,0),\"\")","v":""}]
[null,null,null,null,null,null,null,null,null,null,null,null,null,null,null,null,null,null,null,null,null,null,null,null,null,null,null,null,null,null,null,null,null,null,null,null,null,null,null,null,{"$f":"COUNTIF($AK$3:AK106,AK106)","v":0},{"$f":"IFERROR(LOOKUP(2,1/((COUNTIF($AP$2:AP105,$AK$3:AK208)=0)*($AO$3:AO208=$AO$3)),$AK$3:AK208),\"\")","v":""},{"$f":"IFERROR(VLOOKUP(AP106,$AK$3:AN208,4,0),\"\")","v":""}]
[null,null,null,null,null,null,null,null,null,null,null,null,null,null,null,null,null,null,null,null,null,null,null,null,null,null,null,null,null,null,null,null,null,null,null,null,null,null,null,null,{"$f":"COUNTIF($AK$3:AK107,AK107)","v":0},{"$f":"IFERROR(LOOKUP(2,1/((COUNTIF($AP$2:AP106,$AK$3:AK209)=0)*($AO$3:AO209=$AO$3)),$AK$3:AK209),\"\")","v":""},{"$f":"IFERROR(VLOOKUP(AP107,$AK$3:AN209,4,0),\"\")","v":""}]
[null,null,null,null,null,null,null,null,null,null,null,null,null,null,null,null,null,null,null,null,null,null,null,null,null,null,null,null,null,null,null,null,null,null,null,null,null,null,null,null,{"$f":"COUNTIF($AK$3:AK108,AK108)","v":0},{"$f":"IFERROR(LOOKUP(2,1/((COUNTIF($AP$2:AP107,$AK$3:AK210)=0)*($AO$3:AO210=$AO$3)),$AK$3:AK210),\"\")","v":""},{"$f":"IFERROR(VLOOKUP(AP108,$AK$3:AN210,4,0),\"\")","v":""}]
[null,null,null,null,null,null,null,null,null,null,null,null,null,null,null,null,null,null,null,null,null,null,null,null,null,null,null,null,null,null,null,null,null,null,null,null,null,null,null,null,{"$f":"COUNTIF($AK$3:AK109,AK109)","v":0},{"$f":"IFERROR(LOOKUP(2,1/((COUNTIF($AP$2:AP108,$AK$3:AK211)=0)*($AO$3:AO211=$AO$3)),$AK$3:AK211),\"\")","v":""},{"$f":"IFERROR(VLOOKUP(AP109,$AK$3:AN211,4,0),\"\")","v":""}]
[null,null,null,null,null,null,null,null,null,null,null,null,null,null,null,null,null,null,null,null,null,null,null,null,null,null,null,null,null,null,null,null,null,null,null,null,null,null,null,null,{"$f":"COUNTIF($AK$3:AK110,AK110)","v":0},{"$f":"IFERROR(LOOKUP(2,1/((COUNTIF($AP$2:AP109,$AK$3:AK212)=0)*($AO$3:AO212=$AO$3)),$AK$3:AK212),\"\")","v":""},{"$f":"IFERROR(VLOOKUP(AP110,$AK$3:AN212,4,0),\"\")","v":""}]
[null,null,null,null,null,null,null,null,null,null,null,null,null,null,null,null,null,null,null,null,null,null,null,null,null,null,null,null,null,null,null,null,null,null,null,null,null,null,null,null,{"$f":"COUNTIF($AK$3:AK111,AK111)","v":0},{"$f":"IFERROR(LOOKUP(2,1/((COUNTIF($AP$2:AP110,$AK$3:AK213)=0)*($AO$3:AO213=$AO$3)),$AK$3:AK213),\"\")","v":""},{"$f":"IFERROR(VLOOKUP(AP111,$AK$3:AN213,4,0),\"\")","v":""}]
[null,null,null,null,null,null,null,null,null,null,null,null,null,null,null,null,null,null,null,null,null,null,null,null,null,null,null,null,null,null,null,null,null,null,null,null,null,null,null,null,{"$f":"COUNTIF($AK$3:AK112,AK112)","v":0},{"$f":"IFERROR(LOOKUP(2,1/((COUNTIF($AP$2:AP111,$AK$3:AK214)=0)*($AO$3:AO214=$AO$3)),$AK$3:AK214),\"\")","v":""},{"$f":"IFERROR(VLOOKUP(AP112,$AK$3:AN214,4,0),\"\")","v":""}]
[null,null,null,null,null,null,null,null,null,null,null,null,null,null,null,null,null,null,null,null,null,null,null,null,null,null,null,null,null,null,null,null,null,null,null,null,null,null,null,null,{"$f":"COUNTIF($AK$3:AK113,AK113)","v":0},{"$f":"IFERROR(LOOKUP(2,1/((COUNTIF($AP$2:AP112,$AK$3:AK215)=0)*($AO$3:AO215=$AO$3)),$AK$3:AK215),\"\")","v":""},{"$f":"IFERROR(VLOOKUP(AP113,$AK$3:AN215,4,0),\"\")","v":""}]
[null,null,null,null,null,null,null,null,null,null,null,null,null,null,null,null,null,null,null,null,null,null,null,null,null,null,null,null,null,null,null,null,null,null,null,null,null,null,null,null,{"$f":"COUNTIF($AK$3:AK114,AK114)","v":0},{"$f":"IFERROR(LOOKUP(2,1/((COUNTIF($AP$2:AP113,$AK$3:AK216)=0)*($AO$3:AO216=$AO$3)),$AK$3:AK216),\"\")","v":""},{"$f":"IFERROR(VLOOKUP(AP114,$AK$3:AN216,4,0),\"\")","v":""}]
[null,null,null,null,null,null,null,null,null,null,null,null,null,null,null,null,null,null,null,null,null,null,null,null,null,null,null,null,null,null,null,null,null,null,null,null,null,null,null,null,{"$f":"COUNTIF($AK$3:AK115,AK115)","v":0},{"$f":"IFERROR(LOOKUP(2,1/((COUNTIF($AP$2:AP114,$AK$3:AK217)=0)*($AO$3:AO217=$AO$3)),$AK$3:AK217),\"\")","v":""},{"$f":"IFERROR(VLOOKUP(AP115,$AK$3:AN217,4,0),\"\")","v":""}]
[null,null,null,null,null,null,null,null,null,null,null,null,null,null,null,null,null,null,null,null,null,null,null,null,null,null,null,null,null,null,null,null,null,null,null,null,null,null,null,null,{"$f":"COUNTIF($AK$3:AK116,AK116)","v":0},{"$f":"IFERROR(LOOKUP(2,1/((COUNTIF($AP$2:AP115,$AK$3:AK218)=0)*($AO$3:AO218=$AO$3)),$AK$3:AK218),\"\")","v":""},{"$f":"IFERROR(VLOOKUP(AP116,$AK$3:AN218,4,0),\"\")","v":""}]
[null,null,null,null,null,null,null,null,null,null,null,null,null,null,null,null,null,null,null,null,null,null,null,null,null,null,null,null,null,null,null,null,null,null,null,null,null,null,null,null,{"$f":"COUNTIF($AK$3:AK117,AK117)","v":0},{"$f":"IFERROR(LOOKUP(2,1/((COUNTIF($AP$2:AP116,$AK$3:AK219)=0)*($AO$3:AO219=$AO$3)),$AK$3:AK219),\"\")","v":""},{"$f":"IFERROR(VLOOKUP(AP117,$AK$3:AN219,4,0),\"\")","v":""}]
[null,null,null,null,null,null,null,null,null,null,null,null,null,null,null,null,null,null,null,null,null,null,null,null,null,null,null,null,null,null,null,null,null,null,null,null,null,null,null,null,{"$f":"COUNTIF($AK$3:AK118,AK118)","v":0},{"$f":"IFERROR(LOOKUP(2,1/((COUNTIF($AP$2:AP117,$AK$3:AK220)=0)*($AO$3:AO220=$AO$3)),$AK$3:AK220),\"\")","v":""},{"$f":"IFERROR(VLOOKUP(AP118,$AK$3:AN220,4,0),\"\")","v":""}]
[null,null,null,null,null,null,null,null,null,null,null,null,null,null,null,null,null,null,null,null,null,null,null,null,null,null,null,null,null,null,null,null,null,null,null,null,null,null,null,null,{"$f":"COUNTIF($AK$3:AK119,AK119)","v":0},{"$f":"IFERROR(LOOKUP(2,1/((COUNTIF($AP$2:AP118,$AK$3:AK221)=0)*($AO$3:AO221=$AO$3)),$AK$3:AK221),\"\")","v":""},{"$f":"IFERROR(VLOOKUP(AP119,$AK$3:AN221,4,0),\"\")","v":""}]
[null,null,null,null,null,null,null,null,null,null,null,null,null,null,null,null,null,null,null,null,null,null,null,null,null,null,null,null,null,null,null,null,null,null,null,null,null,null,null,null,{"$f":"COUNTIF($AK$3:AK120,AK120)","v":0},{"$f":"IFERROR(LOOKUP(2,1/((COUNTIF($AP$2:AP119,$AK$3:AK222)=0)*($AO$3:AO222=$AO$3)),$AK$3:AK222),\"\")","v":""},{"$f":"IFERROR(VLOOKUP(AP120,$AK$3:AN222,4,0),\"\")","v":""}]
[null,null,null,null,null,null,null,null,null,null,null,null,null,null,null,null,null,null,null,null,null,null,null,null,null,null,null,null,null,null,null,null,null,null,null,null,null,null,null,null,{"$f":"COUNTIF($AK$3:AK121,AK121)","v":0},{"$f":"IFERROR(LOOKUP(2,1/((COUNTIF($AP$2:AP120,$AK$3:AK223)=0)*($AO$3:AO223=$AO$3)),$AK$3:AK223),\"\")","v":""},{"$f":"IFERROR(VLOOKUP(AP121,$AK$3:AN223,4,0),\"\")","v":""}]
[null,null,null,null,null,null,null,null,null,null,null,null,null,null,null,null,null,null,null,null,null,null,null,null,null,null,null,null,null,null,null,null,null,null,null,null,null,null,null,null,{"$f":"COUNTIF($AK$3:AK122,AK122)","v":0},{"$f":"IFERROR(LOOKUP(2,1/((COUNTIF($AP$2:AP121,$AK$3:AK224)=0)*($AO$3:AO224=$AO$3)),$AK$3:AK224),\"\")","v":""},{"$f":"IFERROR(VLOOKUP(AP122,$AK$3:AN224,4,0),\"\")","v":""}]
[null,null,null,null,null,null,null,null,null,null,null,null,null,null,null,null,null,null,null,null,null,null,null,null,null,null,null,null,null,null,null,null,null,null,null,null,null,null,null,null,{"$f":"COUNTIF($AK$3:AK123,AK123)","v":0},{"$f":"IFERROR(LOOKUP(2,1/((COUNTIF($AP$2:AP122,$AK$3:AK225)=0)*($AO$3:AO225=$AO$3)),$AK$3:AK225),\"\")","v":""},{"$f":"IFERROR(VLOOKUP(AP123,$AK$3:AN225,4,0),\"\")","v":""}]
[null,null,null,null,null,null,null,null,null,null,null,null,null,null,null,null,null,null,null,null,null,null,null,null,null,null,null,null,null,null,null,null,null,null,null,null,null,null,null,null,{"$f":"COUNTIF($AK$3:AK124,AK124)","v":0},{"$f":"IFERROR(LOOKUP(2,1/((COUNTIF($AP$2:AP123,$AK$3:AK226)=0)*($AO$3:AO226=$AO$3)),$AK$3:AK226),\"\")","v":""},{"$f":"IFERROR(VLOOKUP(AP124,$AK$3:AN226,4,0),\"\")","v":""}]